fUSD/lending_fUSD_20240215
["ID","MTS","AMOUNT","RATE_DAILY","PERIOD"]
[314164934,1708036253299,-500.0,0.00039178,7]
[314164935,1708036253308,-692.42,0.00039178,7]
[314164936,1708036253317,-2022.76,0.00039178,7]
[314164937,1708036253327,-500.0,0.00039178,7]
[314164938,1708036253336,-761.54,0.00039178,7]
[314164939,1708036253345,-500.0,0.00039178,7]
[314164940,1708036253354,-500.0,0.00039178,7]
[314164941,1708036253363,-560.86,0.00039178,7]
[314164942,1708036253372,-500.0,0.00039178,7]
[314164943,1708036253381,-722.68,0.00039178,7]
[314164944,1708036253390,-578.81,0.00039178,7]
[314164945,1708036253399,-500.0,0.00039178,7]
[314164946,1708036253408,-500.0,0.00039178,7]
[314164947,1708036253418,-500.0,0.00039178,7]
[314164948,1708036253427,-500.0,0.00039178,7]
[314164949,1708036253436,-500.0,0.00039178,7]
[314164950,1708036253446,-326.5,0.00039178,7]
[314164951,1708036253455,-500.0,0.00039178,7]
[314164952,1708036253464,-500.0,0.00039178,7]
[314164953,1708036253473,-500.0,0.00039178,7]
[314164954,1708036253483,-500.0,0.00039178,7]
[314164955,1708036253492,-500.0,0.00039178,7]
[314164956,1708036253501,-1095.93,0.00039178,7]
[314164957,1708036253511,-599.93,0.00039178,7]
[314164958,1708036253520,-500.0,0.00039178,7]
[314164959,1708036253529,-500.0,0.00039178,7]
[314164960,1708036253538,-500.0,0.00039178,7]
[314164961,1708036253547,-814.84,0.00039178,7]
[314164962,1708036253556,-170.5205972,0.00039178,7]
[314164963,1708036253565,-500.0,0.00039178,7]
[314164964,1708036253575,-656.02,0.00039178,7]
[314164965,1708036253583,-644.55,0.00039178,7]
[314164966,1708036253593,-500.0,0.00039178,7]
[314164967,1708036253602,-500.0,0.00039178,7]
[314164968,1708036253611,-8662.85,0.00039178,7]
[314164969,1708036253620,-1532.52,0.00039178,7]
[314164970,1708036253629,-500.0,0.00039178,7]
[314164971,1708036253638,-500.0,0.00039178,7]
[314164972,1708036253648,-654.99,0.00039178,7]
[314164973,1708036253656,-500.0,0.00039178,7]
[314164974,1708036253665,-500.0,0.00039178,7]
[314164975,1708036253674,-532.93,0.00039178,7]
[314164976,1708036253683,-500.0,0.00039178,7]
[314164977,1708036253693,-673.82,0.00039178,7]
[314164978,1708036253702,-500.0,0.00039178,7]
[314164979,1708036253711,-500.0,0.00039178,7]
[314164980,1708036253720,-1274.37,0.00039178,7]
[314164981,1708036253729,-500.0,0.00039178,7]
[314164982,1708036253737,-500.0,0.00039178,7]
[314164983,1708036253745,-500.0,0.00039178,7]
[314164984,1708036253754,-770.36,0.00039178,7]
[314164985,1708036253763,-613.95,0.00039178,7]
[314164986,1708036253772,-500.0,0.00039178,7]
[314164987,1708036253781,-150.0,0.00039197,2]
[314164988,1708036253790,-5000.0,0.00039203,14]
[314164989,1708036253799,-1000.0,0.00039203,14]
[314164990,1708036253809,-150.0,0.00039215,2]
[314164991,1708036253817,-150.0,0.00039216,2]
[314164992,1708036253827,-150.0,0.00039217,2]
[314164993,1708036253836,-150.0,0.00039223,2]
[314164994,1708036253845,-150.0,0.00039234,2]
[314164995,1708036253854,-151.021624,0.00039248,25]
[314164996,1708036253863,-156.1,0.00039257,2]
[314164997,1708036253872,-332.76,0.0003926,2]
[314164998,1708036253884,-152.0,0.00039263,7]
[314164999,1708036253899,-518.23,0.000393,3]
[314165000,1708036253913,-518.23,0.000393,3]
[314165001,1708036253928,-154.03,0.000393,3]
[314165002,1708036253940,-518.23,0.000393,3]
[314165003,1708036253952,-518.23,0.000393,3]
[314165004,1708036253964,-154.03,0.000393,3]
[314165005,1708036253978,-518.23,0.000393,3]
[314165006,1708036253992,-518.23,0.000393,3]
[314165007,1708036254005,-518.23,0.000393,3]
[314165008,1708036254018,-518.23,0.000393,3]
[314165009,1708036254029,-518.23,0.000393,3]
[314165010,1708036254040,-518.23,0.000393,3]
[314165011,1708036254053,-518.23,0.000393,3]
[314165012,1708036254064,-518.23,0.000393,3]
[314165013,1708036254077,-518.23,0.000393,3]
[314165014,1708036254089,-518.23,0.000393,3]
[314165015,1708036254104,-518.23,0.000393,3]
[314165016,1708036254118,-518.23,0.000393,3]
[314165017,1708036254128,-518.23,0.000393,3]
[314165018,1708036254142,-518.23,0.000393,3]
[314165019,1708036254154,-518.23,0.000393,3]
[314165020,1708036254167,-518.23,0.000393,3]
[314165021,1708036254181,-150.0,0.00039307,2]
[314165022,1708036254193,-1610.41,0.00039317,7]
[314165023,1708036254204,-1610.41,0.00039317,7]
[314165024,1708036254216,-150.0,0.00039328,2]
[314165025,1708036254229,-21794.85516383,0.0003934,13]
[314165026,1708036254241,-150.0,0.00039345,2]
[314165027,1708036254255,-151.021624,0.00039348,25]
[314165028,1708036254269,-851.33950985,0.00039352,2]
[314165029,1708036254282,-150.0,0.00039377,2]
[314165030,1708036254293,-151.0,0.00039397,7]
[314165031,1708036254303,-336.83945975,0.000394,2]
[314165032,1708036254314,-107999.17273501,0.000394,4]
[314165033,1708036254326,-152.0,0.000394,7]
[314165034,1708036254338,-151.0,0.000394,7]
[314165035,1708036254349,-151.0,0.000394,7]
[314165036,1708036254360,-151.0,0.000394,7]
[314165037,1708036254374,-151.0,0.000394,7]
[314165038,1708036254385,-160.144882,0.000394,7]
[314165039,1708036254395,-151.0,0.000394,7]
[314165040,1708036254405,-158.380825,0.00039403,7]
[314165041,1708036254416,-295.0,0.00039403,7]
[314165042,1708036254427,-151.0,0.00039403,7]
[314165043,1708036254438,-150.0,0.00039405,2]
[314165044,1708036254449,-151.0,0.00039408,7]
[314165045,1708036254460,-151.0,0.00039408,7]
[314165046,1708036254472,-221.075265,0.00039408,7]
[314165047,1708036254484,-189.919965,0.00039408,7]
[314165048,1708036254496,-151.0,0.00039408,7]
[314165049,1708036254508,-151.0,0.00039408,2]
[314165050,1708036254519,-276.640022,0.00039408,2]
[314165051,1708036254531,-164.865869,0.00039408,7]
[314165052,1708036254543,-151.0,0.00039408,7]
[314165053,1708036254555,-7812.84831677,0.0003941,2]
[314165054,1708036254568,-2605.56786598,0.0003941,2]
[314165055,1708036254580,-286.63150246,0.0003941,30]
[314165056,1708036254593,-154.99999924,0.0003941,2]
[314165057,1708036254605,-5222.80894417,0.0003941,10]
[314165058,1708036254617,-500090.16441029,0.0003941,120]
[314165059,1708036254630,-176.58837034,0.0003941,30]
[314165060,1708036254645,-150.0,0.0003941,30]
[314165061,1708036254657,-151.0,0.0003941,7]
[314165062,1708036254669,-151.0,0.0003941,7]
[314165063,1708036254682,-205.993678,0.0003941,7]
[314165064,1708036254695,-193.30357,0.0003941,7]
[314165065,1708036254708,-340.323789,0.0003941,7]
[314165066,1708036254719,-340.323789,0.0003941,7]
[314165067,1708036254731,-151.0,0.0003941,7]
[314165068,1708036254741,-183.114024,0.0003941,7]
[314165069,1708036254752,-151.0,0.0003941,7]
[314165070,1708036254764,-151.0,0.0003941,7]
[314165071,1708036254775,-151.0,0.0003941,7]
[314165072,1708036254787,-151.0,0.0003941,7]
[314165073,1708036254798,-151.0,0.0003941,7]
[314165074,1708036254809,-151.0,0.0003941,7]
[314165075,1708036254820,-151.0,0.0003941,7]
[314165076,1708036254831,-153.334641,0.0003941,7]
[314165077,1708036254843,-151.0,0.0003941,7]
[314165078,1708036254855,-151.0,0.0003941,7]
[314165079,1708036254865,-150.0,0.00039419,2]
[314165080,1708036254877,-200.0,0.00039439,2]
[314165081,1708036254888,-533.94499806,0.00039439,2]
[314165082,1708036254903,-151.021624,0.00039448,26]
[314165083,1708036254914,-163.0,0.00039448,7]
[314165084,1708036254926,-151.0,0.00039452,7]
[314165085,1708036254938,-151.0,0.00039452,7]
[314165086,1708036254949,-500.0,0.00039452,7]
[314165087,1708036254960,-160.38,0.00039452,7]
[314165088,1708036254971,-500.0,0.00039452,7]
[314165089,1708036254982,-151.0,0.00039452,7]
[314165090,1708036254994,-151.0,0.00039452,7]
[314165091,1708036255005,-500.0,0.00039452,7]
[314165092,1708036255018,-724.46,0.00039452,7]
[314165093,1708036255029,-500.0,0.00039452,7]
[314165094,1708036255041,-500.0,0.00039452,7]
[314165095,1708036255052,-402.78135111,0.00039452,7]
[314165096,1708036255064,-692.42,0.00039452,7]
[314165097,1708036255076,-2022.76,0.00039452,7]
[314165098,1708036255087,-500.0,0.00039452,7]
[314165099,1708036255099,-761.54,0.00039452,7]
[314165100,1708036255113,-500.0,0.00039452,7]
[314165101,1708036255124,-500.0,0.00039452,7]
[314165102,1708036255136,-560.86,0.00039452,7]
[314165103,1708036255150,-500.0,0.00039452,7]
[314165104,1708036255161,-722.68,0.00039452,7]
[314165105,1708036255173,-578.81,0.00039452,7]
[314165106,1708036255185,-500.0,0.00039452,7]
[314165107,1708036255196,-500.0,0.00039452,7]
[314165108,1708036255209,-500.0,0.00039452,7]
[314165109,1708036255220,-500.0,0.00039452,7]
[314165110,1708036255231,-204.38115332,0.00039452,7]
[314165111,1708036255242,-500.0,0.00039452,7]
[314165112,1708036255253,-500.0,0.00039452,7]
[314165113,1708036255264,-500.0,0.00039452,7]
[314165114,1708036255275,-500.0,0.00039452,7]
[314165115,1708036255287,-1095.93,0.00039452,7]
[314165116,1708036255298,-599.93,0.00039452,7]
[314165117,1708036255309,-500.0,0.00039452,7]
[314165118,1708036255320,-814.84,0.00039452,7]
[314165119,1708036255331,-500.0,0.00039452,7]
[314165120,1708036255342,-656.02,0.00039452,7]
[314165121,1708036255353,-644.55,0.00039452,7]
[314165122,1708036255365,-500.0,0.00039452,7]
[314165123,1708036255377,-370.51214781,0.00039452,7]
[314165124,1708036255388,-8662.85,0.00039452,7]
[314165125,1708036255401,-1532.52,0.00039452,7]
[314165126,1708036255586,-500.0,0.00039452,7]
[314165127,1708036255595,-500.0,0.00039452,7]
[314165128,1708036255605,-654.99,0.00039452,7]
[314165129,1708036255614,-500.0,0.00039452,7]
[314165130,1708036255624,-532.93,0.00039452,7]
[314165131,1708036255632,-673.82,0.00039452,7]
[314165132,1708036255643,-500.0,0.00039452,7]
[314165133,1708036255652,-500.0,0.00039452,7]
[314165134,1708036255662,-1274.37,0.00039452,7]
[314165135,1708036255671,-500.0,0.00039452,7]
[314165136,1708036255680,-500.0,0.00039452,7]
[314165137,1708036255690,-770.36,0.00039452,7]
[314165138,1708036255700,-613.95,0.00039452,7]
[314165139,1708036255709,-159.205528,0.00039452,14]
[314165140,1708036255719,-150.0,0.00039453,2]
[314165141,1708036255728,-156.1,0.00039475,2]
[314165142,1708036255737,-5000.0,0.00039477,14]
[314165143,1708036255746,-1000.0,0.00039477,14]
[314165144,1708036255756,-449.0,0.0003949,2]
[314165145,1708036255765,-300.0,0.00039496,2]
[314165146,1708036255774,-175423.92690327,0.000395,2]
[314165147,1708036255975,-74576.07309673,0.000395,2]
[314165148,1708036255984,-252.21,0.000395,2]
[314165149,1708036255994,-150.0,0.00039501,2]
[314165150,1708036256003,-150.0,0.00039507,2]
[314165151,1708036256013,-150.0,0.0003951,2]
[314165152,1708036256022,-150.0,0.00039515,2]
[314165153,1708036256031,-152.0,0.00039537,7]
[314165154,1708036256040,-150.0,0.00039543,2]
[314165155,1708036256049,-150.0,0.00039544,2]
[314165156,1708036256058,-151.021624,0.00039548,26]
[314165157,1708036256067,-492.89387823,0.00039548,5]
[314165158,1708036256076,-155.05,0.00039555,2]
[314165159,1708036256085,-237.0,0.00039561,2]
[314165160,1708036256095,-1003.0,0.00039561,2]
[314165161,1708036256106,-857.0,0.00039561,2]
[314165162,1708036256117,-429.0,0.00039561,2]
[314165163,1708036256127,-451.879,0.00039561,2]
[314165164,1708036256136,-321.0,0.00039561,2]
[314165165,1708036256146,-1138.0,0.00039561,2]
[314165166,1708036256155,-150.0,0.00039561,2]
[314165167,1708036256164,-454.0,0.00039561,2]
[314165168,1708036256173,-150.0,0.00039561,2]
[314165169,1708036256182,-8162.0,0.00039561,2]
[314165170,1708036256192,-238.139,0.00039561,2]
[314165171,1708036256201,-186.858,0.00039561,2]
[314165172,1708036256211,-2834.0,0.00039561,2]
[314165173,1708036256219,-2926.0,0.00039561,2]
[314165174,1708036256228,-2289.0,0.00039561,2]
[314165175,1708036256237,-19841.0,0.00039561,2]
[314165176,1708036256247,-4059.0,0.00039561,2]
[314165177,1708036256256,-841.0,0.00039561,2]
[314165178,1708036256265,-1864.0,0.00039561,2]
[314165179,1708036256274,-953.0,0.00039561,2]
[314165180,1708036256283,-1037.0,0.00039561,2]
[314165181,1708036256292,-216.0,0.00039561,2]
[314165182,1708036256301,-150.0,0.0003957,2]
[314165183,1708036256311,-150.0,0.00039571,2]
[314165184,1708036256320,-150.0,0.00039572,2]
[314165185,1708036256330,-150.0,0.00039575,2]
[314165186,1708036256339,-1500.0,0.00039575,2]
[314165187,1708036256348,-150.0,0.00039576,2]
[314165188,1708036256358,-150.0,0.00039578,2]
[314165189,1708036256367,-151.0,0.00039585,7]
[314165190,1708036256376,-2656.57741132,0.00039586,2]
[314165191,1708036256385,-1610.41,0.0003959,7]
[314165192,1708036256394,-1610.41,0.0003959,7]
[314165193,1708036256404,-150.0,0.00039595,2]
[314165194,1708036256413,-200.0,0.00039597,20]
[314165195,1708036256422,-202.79257463,0.00039597,2]
[314165196,1708036256431,-151.0,0.000396,7]
[314165197,1708036256441,-151.0,0.000396,7]
[314165198,1708036256453,-150.0,0.000396,2]
[314165199,1708036256462,-151.0,0.000396,7]
[314165200,1708036256471,-151.0,0.000396,7]
[314165201,1708036256480,-151.0,0.000396,7]
[314165202,1708036256489,-151.0,0.000396,2]
[314165203,1708036256499,-340.323789,0.000396,7]
[314165204,1708036256509,-340.323789,0.000396,7]
[314165205,1708036256518,-151.0,0.000396,7]
[314165206,1708036256527,-151.0,0.000396,7]
[314165207,1708036256537,-151.0,0.000396,7]
[314165208,1708036256546,-151.0,0.000396,7]
[314165209,1708036256555,-151.0,0.000396,7]
[314165210,1708036256564,-151.0,0.000396,7]
[314165211,1708036256573,-1000.0,0.000396,7]
[314165212,1708036256582,-151.0,0.000396,7]
[314165213,1708036256591,-151.0,0.000396,7]
[314165214,1708036256601,-250000.0,0.000396,3]
[314165215,1708036256610,-800.0,0.00039605,15]
[314165216,1708036256618,-1000.0,0.00039611,2]
[314165217,1708036256628,-200.0,0.00039613,20]
[314165218,1708036256637,-300.0,0.00039618,2]
[314165219,1708036256647,-152.97427392,0.00039622,5]
[314165220,1708036256655,-150.0,0.00039625,2]
[314165221,1708036256665,-206.22,0.00039628,2]
[314165222,1708036256674,-158.22,0.0003963,2]
[314165223,1708036256682,-800.0,0.0003963,15]
[314165224,1708036256692,-200.0,0.0003963,20]
[314165225,1708036256700,-500.0,0.0003963,20]
[314165226,1708036256709,-150.0,0.00039637,2]
[314165227,1708036256717,-200.0,0.00039646,20]
[314165228,1708036256726,-151.021624,0.00039648,27]
[314165229,1708036256735,-151.021624,0.00039648,26]
[314165230,1708036256744,-800.0,0.00039655,15]
[314165231,1708036256753,-150.0,0.00039656,2]
[314165232,1708036256762,-200.0,0.00039663,20]
[314165233,1708036256771,-150.0,0.00039668,2]
[314165234,1708036256780,-152.0,0.00039674,7]
[314165235,1708036256789,-150.0,0.00039674,2]
[314165236,1708036256798,-200.0,0.00039679,15]
[314165237,1708036256807,-800.0,0.00039679,15]
[314165238,1708036256817,-200.0,0.00039679,20]
[314165239,1708036256825,-500.0,0.00039679,20]
[314165240,1708036256834,-151.0,0.00039683,7]
[314165241,1708036256844,-156.1,0.00039693,2]
[314165242,1708036256852,-299.99999901,0.000397,2]
[314165243,1708036256862,-150.0,0.00039702,2]
[314165244,1708036256870,-150.0,0.00039704,2]
[314165245,1708036256878,-151.0,0.00039722,7]
[314165246,1708036256887,-150.0,0.00039725,2]
[314165247,1708036256898,-500.0,0.00039726,7]
[314165248,1708036256907,-174.36508318,0.00039726,7]
[314165249,1708036256916,-500.0,0.00039726,7]
[314165250,1708036256926,-724.46,0.00039726,7]
[314165251,1708036256935,-650.0,0.00039726,31]
[314165252,1708036256945,-650.0,0.00039726,31]
[314165253,1708036256955,-640.11523944,0.00039726,31]
[314165254,1708036256964,-500.0,0.00039726,7]
[314165255,1708036256973,-500.0,0.00039726,7]
[314165256,1708036256982,-692.42,0.00039726,7]
[314165257,1708036256991,-2022.76,0.00039726,7]
[314165258,1708036257000,-500.0,0.00039726,7]
[314165259,1708036257010,-761.54,0.00039726,7]
[314165260,1708036257018,-500.0,0.00039726,7]
[314165261,1708036257028,-500.0,0.00039726,7]
[314165262,1708036257037,-560.86,0.00039726,7]
[314165263,1708036257047,-722.68,0.00039726,7]
[314165264,1708036257056,-578.81,0.00039726,7]
[314165265,1708036257065,-500.0,0.00039726,7]
[314165266,1708036257075,-499.58800889,0.00039726,7]
[314165267,1708036257084,-500.0,0.00039726,7]
[314165268,1708036257093,-500.0,0.00039726,7]
[314165269,1708036257103,-500.0,0.00039726,7]
[314165270,1708036257114,-500.0,0.00039726,7]
[314165271,1708036257123,-500.0,0.00039726,7]
[314165272,1708036257133,-500.0,0.00039726,7]
[314165273,1708036257143,-1095.93,0.00039726,7]
[314165274,1708036257153,-599.93,0.00039726,7]
[314165275,1708036257162,-500.0,0.00039726,7]
[314165276,1708036257172,-814.84,0.00039726,7]
[314165277,1708036257182,-500.0,0.00039726,7]
[314165278,1708036257191,-656.02,0.00039726,7]
[314165279,1708036257201,-644.55,0.00039726,7]
[314165280,1708036257209,-500.0,0.00039726,7]
[314165281,1708036257219,-8662.85,0.00039726,7]
[314165282,1708036257228,-1532.52,0.00039726,7]
[314165283,1708036257237,-500.0,0.00039726,7]
[314165284,1708036257247,-654.99,0.00039726,7]
[314165285,1708036257256,-500.0,0.00039726,7]
[314165286,1708036257265,-532.93,0.00039726,7]
[314165287,1708036257274,-673.82,0.00039726,7]
[314165288,1708036257283,-500.0,0.00039726,7]
[314165289,1708036257293,-500.0,0.00039726,7]
[314165290,1708036257302,-1274.37,0.00039726,7]
[314165291,1708036257310,-500.0,0.00039726,7]
[314165292,1708036257319,-423.3391392,0.00039726,7]
[314165293,1708036257327,-770.36,0.00039726,7]
[314165294,1708036257337,-613.95,0.00039726,7]
[314165295,1708036257346,-411.9,0.00039726,2]
[314165296,1708036257355,-418.75,0.00039726,2]
[314165297,1708036257364,-411.9,0.00039726,2]
[314165298,1708036257372,-418.75,0.00039726,2]
[314165299,1708036257381,-418.75,0.00039726,2]
[314165300,1708036257390,-411.9,0.00039726,2]
[314165301,1708036257401,-418.75,0.00039726,2]
[314165302,1708036257410,-411.9,0.00039726,2]
[314165303,1708036257419,-248.84904618,0.00039734,13]
[314165304,1708036257428,-150.0,0.00039738,2]
[314165305,1708036257438,-150.0,0.00039741,2]
[314165306,1708036257447,-151.021624,0.00039748,27]
[314165307,1708036257456,-1833.78553632,0.00039751,14]
[314165308,1708036257465,-4037.33018647,0.00039753,2]
[314165309,1708036257474,-51435.46652935,0.00039753,2]
[314165310,1708036257483,-1500.0,0.00039777,2]
[314165311,1708036257491,-2506.27714986,0.00039799,9]
[314165312,1708036257501,-3000.0,0.000398,41]
[314165313,1708036257509,-3000.0,0.0003981,41]
[314165314,1708036257518,-152.0,0.00039811,7]
[314165315,1708036257527,-150.0,0.00039818,2]
[314165316,1708036257536,-5480.514483,0.0003982,41]
[314165317,1708036257545,-150.0,0.00039838,2]
[314165318,1708036257554,-150.0,0.00039847,2]
[314165319,1708036257566,-151.021624,0.00039848,27]
[314165320,1708036257575,-533.94499806,0.00039848,2]
[314165321,1708036257583,-151.0,0.00039859,7]
[314165322,1708036257592,-1165.16,0.00039859,2]
[314165323,1708036257601,-1610.41,0.00039863,7]
[314165324,1708036257610,-1610.41,0.00039863,7]
[314165325,1708036257619,-300.0,0.00039867,2]
[314165326,1708036257628,-1500.0,0.0003988,2]
[314165327,1708036257637,-150.0,0.00039889,2]
[314165328,1708036257647,-1500.0,0.00039897,2]
[314165329,1708036257656,-1000.0,0.000399,7]
[314165330,1708036257666,-150.0,0.00039901,2]
[314165331,1708036257675,-300.0,0.00039903,2]
[314165332,1708036257684,-150.0,0.00039909,2]
[314165333,1708036257693,-156.1,0.00039911,2]
[314165334,1708036257702,-150.0,0.00039914,2]
[314165335,1708036257711,-1500.0,0.00039923,2]
[314165336,1708036257720,-150.0,0.00039925,2]
[314165337,1708036257729,-150.0,0.00039926,2]
[314165338,1708036257738,-21794.85516383,0.00039932,13]
[314165339,1708036257748,-151.021624,0.00039948,27]
[314165340,1708036257757,-152.0,0.00039948,7]
[314165341,1708036257766,-150.0,0.00039949,2]
[314165342,1708036257775,-1533.46522877,0.00039952,2]
[314165343,1708036257784,-200.0,0.00039959,2]
[314165344,1708036257793,-147045.996294,0.0003996,2]
[314165345,1708036257802,-150.0,0.0003997,2]
[314165346,1708036257811,-150.0,0.00039972,2]
[314165347,1708036257820,-150.0,0.00039976,2]
[314165348,1708036257830,-150.0,0.00039978,2]
[314165349,1708036257838,-1500.0,0.00039987,2]
[314165350,1708036257847,-150.0,0.0003999,2]
[314165351,1708036257856,-1401.2429842,0.00039993,2]
[314165352,1708036257865,-26316.288054,0.00039993,2]
[314165353,1708036257874,-2357.732273,0.00039994,2]
[314165354,1708036257883,-151.0,0.00039996,7]
[314165355,1708036257893,-150.01,0.00039999,2]
[314165356,1708036257902,-3316.12830692,0.00039999,2]
[314165357,1708036257911,-150.0,0.00039999,2]
[314165358,1708036257920,-150.0,0.00039999,2]
[314165359,1708036257929,-132041.24856088,0.0004,30]
[314165360,1708036257946,-25003.18310628,0.0004,30]
[314165361,1708036257954,-450.12345678,0.0004,5]
[314165362,1708036257963,-1192.7217626,0.0004,5]
[314165363,1708036257972,-384.91,0.0004,7]
[314165364,1708036257980,-3537.98,0.0004,7]
[314165365,1708036257988,-22048.96829809,0.0004,7]
[314165366,1708036257997,-1000.0,0.0004,9]
[314165367,1708036258007,-13182.49,0.0004,14]
[314165368,1708036258016,-5000.0,0.0004,3]
[314165369,1708036258025,-2000.0,0.0004,90]
[314165370,1708036258034,-500.0,0.0004,14]
[314165371,1708036258043,-331.45208262,0.0004,3]
[314165372,1708036258052,-6266.09405783,0.0004,30]
[314165373,1708036258061,-200.0,0.0004,15]
[314165374,1708036258071,-170.720541,0.0004,7]
[314165375,1708036258080,-500.0,0.0004,7]
[314165376,1708036258089,-255.0,0.0004,12]
[314165377,1708036258098,-151.0,0.0004,7]
[314165378,1708036258107,-151.0,0.0004,7]
[314165379,1708036258119,-500.0,0.0004,7]
[314165380,1708036258127,-360.0,0.0004,12]
[314165381,1708036258137,-151.0,0.0004,2]
[314165382,1708036258146,-724.46,0.0004,7]
[314165383,1708036258156,-500.0,0.0004,7]
[314165384,1708036258165,-500.0,0.0004,7]
[314165385,1708036258174,-692.42,0.0004,7]
[314165386,1708036258184,-2022.76,0.0004,7]
[314165387,1708036258193,-500.0,0.0004,7]
[314165388,1708036258203,-761.54,0.0004,7]
[314165389,1708036258212,-500.0,0.0004,7]
[314165390,1708036258221,-340.323789,0.0004,7]
[314165391,1708036258231,-500.0,0.0004,7]
[314165392,1708036258240,-560.86,0.0004,7]
[314165393,1708036258249,-340.323789,0.0004,7]
[314165394,1708036258259,-722.68,0.0004,7]
[314165395,1708036258269,-578.81,0.0004,7]
[314165396,1708036258279,-360.0,0.0004,12]
[314165397,1708036258289,-500.0,0.0004,7]
[314165398,1708036258298,-151.0,0.0004,7]
[314165399,1708036258307,-172.25444274,0.0004,7]
[314165400,1708036258316,-500.0,0.0004,7]
[314165401,1708036258325,-500.0,0.0004,7]
[314165402,1708036258335,-500.0,0.0004,7]
[314165403,1708036258344,-500.0,0.0004,7]
[314165404,1708036258353,-151.0,0.0004,7]
[314165405,1708036258362,-151.0,0.0004,7]
[314165406,1708036258372,-151.0,0.0004,7]
[314165407,1708036258381,-500.0,0.0004,7]
[314165408,1708036258390,-1000.0,0.0004,2]
[314165409,1708036258400,-1095.93,0.0004,7]
[314165410,1708036258410,-599.93,0.0004,7]
[314165411,1708036258419,-500.0,0.0004,7]
[314165412,1708036258429,-151.0,0.0004,7]
[314165413,1708036258438,-500.0,0.0004,7]
[314165414,1708036258447,-814.84,0.0004,7]
[314165415,1708036258457,-656.02,0.0004,7]
[314165416,1708036258465,-644.55,0.0004,7]
[314165417,1708036258474,-500.0,0.0004,7]
[314165418,1708036258483,-8662.85,0.0004,7]
[314165419,1708036258493,-1532.52,0.0004,7]
[314165420,1708036258502,-500.0,0.0004,7]
[314165421,1708036258643,-500.0,0.0004,7]
[314165422,1708036258653,-654.99,0.0004,7]
[314165423,1708036258662,-532.93,0.0004,7]
[314165424,1708036258671,-673.82,0.0004,7]
[314165425,1708036258679,-151.0,0.0004,7]
[314165426,1708036258689,-500.0,0.0004,7]
[314165427,1708036258698,-500.0,0.0004,7]
[314165428,1708036258707,-1274.37,0.0004,7]
[314165429,1708036258717,-251.78994814,0.0004,7]
[314165430,1708036258726,-770.36,0.0004,7]
[314165431,1708036258735,-613.95,0.0004,7]
[314165432,1708036258744,-1000.0,0.0004,2]
[314165433,1708036258756,-20432.9266845,0.00040021,2]